Cogmind - Beta 9.2 *** ADVENTURER MODE // 2019.12.20 @ 22:36:31 Player: Michael Result: Self-destructed Performance ------------- Evolutions (7) 3500 Regions Visited (8) 1600 Robots Destroyed (223) 1115 Value Destroyed (7317) 7317 Prototype IDs (6) 120 Alien Tech Used (0) 0 Bonus (375) 375 TOTAL SCORE: 14027 Bonus ------- Pacifist 200 High Alert Combat Kills 175 Cogmind --------- Core Integrity 34/1300 Matter 275/300 Energy 57/100 System Corruption 13% Temperature Cool (18) Movement Core (50) Location -3/Research Parts ------- > --- POWER (2) -------- (None) > --- PROPULSION (3) --- Improved Linear Gravjet > --- UTILITY (13) ----- Enhanced Optical Array Experimental Signal Interpreter Advanced Launcher Guidance Computer Improved Hacking Suite > --- WEAPON (3) ------- (None) > --- INVENTORY (4) ---- High-capacity Storage Unit Long-range Sensor Array Helical Railgun Lance Peak State ------------ > --- POWER ------------ Light Antimatter Reactor Particle Reactor > --- PROPULSION ------- Armored Huge Wheel Centrium Wheel > --- UTILITY ---------- Advanced Cooling System High-capacity Storage Unit High-capacity Storage Unit High-capacity Storage Unit Enhanced Optical Array Experimental Signal Interpreter Advanced Terrain Scan Processor Hardened Light Armor Plating Hardened Light Armor Plating Improved Heavy Armor Plating Advanced Thermal Shield Improved Hacking Suite > --- WEAPON ----------- Helical Railgun Helical Railgun Advanced Assault Cannon > --- INVENTORY -------- Micro Nuclear Core Neutrino Core Neutrino Core Micro Fission Core Micro Fission Core Micro Fission Core Improved Aluminum Leg Armored Huge Wheel Advanced Cooling System High-capacity Storage Unit Compact Matter Pod Compact Matter Pod Long-range Sensor Array Long-range Sensor Array Experimental Signal Interpreter Improved Light Armor Plating Improved Thermal Shield System Backup Module Lance Lance [Rating: 110] Favorites ----------- Power Neutrino Core Engine Reinforced Deuterium Engine Power Core Neutrino Core Reactor Cold Fusion Reactor Propulsion Wheel Leg Aluminum Leg Wheel Wheel Hover Unit Improved Linear Gravjet Flight Unit Nuclear Pulse Array Utility High-capacity Storage Unit Device Improved Sensor Array Storage High-capacity Storage Unit Processor Advanced Terrain Scan Processor Hackware Improved Hacking Suite Protection Improved Medium Armor Plating Weapon Advanced Assault Cannon Energy Cannon Improved EM Pulse Cannon Ballistic Gun Improved Assault Rifle Ballistic Cannon Advanced Assault Cannon Launcher Smartbomb Launcher Piercing Weapon Lance Build | -11 -10 -9 -8 -7 -6 -5 -4 -3 ------- Run | Scr Mat Mat Mat Fac Fac Fac Fac Res Slots Evolved 14 | . . 2 2 2 2 2 2 2 Power 1 | . . . . . . 1 . . Propulsion 1 | . . 1 . . . . . . Utility 11 | . . 1 1 2 2 1 2 2 Weapon 1 | . . . 1 . . . . . Parts Attached 380 | 6 2 21 5 23 141 125 29 28 Power 26 | 1 . 2 . 1 4 10 3 5 Engine 5 | 1 . 1 . 1 2 . . . Core 15 | . . 1 . . 1 10 . 3 Reactor 6 | . . . . . 1 . 3 2 Propulsion 62 | 2 . 8 . 6 16 22 1 7 Treads . | . . . . . . . . . Leg 10 | 2 . 8 . . . . . . Wheel 48 | . . . . 6 16 22 1 3 Hover 3 | . . . . . . . . 3 Flight 1 | . . . . . . . . 1 Utility 187 | 1 1 7 4 11 82 59 13 9 Device 107 | . 1 3 2 4 44 43 7 3 Storage 7 | 1 . 1 . 1 1 3 . . Processor 7 | . . . 1 2 1 1 1 1 Hackware 3 | . . . . . 3 . . . Protection 63 | . . 3 1 4 33 12 5 5 Artifact . | . . . . . . . . . Weapon 105 | 2 1 4 1 5 39 34 12 7 Energy Gun . | . . . . . . . . . Energy Cannon 38 | . . . . 2 16 15 5 . Ballistic Gun 19 | 2 1 3 1 . 5 4 . 3 Ballistic Cannon 30 | . . . . 2 12 9 5 2 Launcher 16 | . . 1 . 1 6 6 2 . Special Weapon . | . . . . . . . . . Impact Weapon . | . . . . . . . . . Slashing Weapon . | . . . . . . . . . Piercing Weapon 2 | . . . . . . . . 2 Special Melee Weapon . | . . . . . . . . . Unidentified Prototypes 6 | . . 2 . . 3 . . 1 Parts Lost 57 | . . . . 1 11 15 7 23 Power 6 | . . . . . 1 2 1 2 Propulsion 20 | . . . . 1 6 6 . 7 Utility 20 | . . . . . 3 3 3 11 Weapon 11 | . . . . . 1 4 3 3 Highest Loss Streak 11 | . . . . 1 4 4 3 11 Average Slot Usage (%) 96 | . 96 99 100 99 98 97 87 73 Engine 3 | . 14 8 9 7 2 1 . . Core 3 | . . 2 . . . 8 5 4 Reactor 1 | . . . . . 2 . 4 2 Leg 4 | . 28 33 27 11 . . . . Wheel 14 | . . . . 11 18 16 10 7 Device 11 | . 10 11 7 7 13 10 13 9 Storage 14 | . 14 11 9 14 13 17 15 10 Processor 11 | . . . 9 14 13 11 11 14 Hackware 6 | . . . . . 6 9 5 4 Protection 4 | . . 11 10 7 5 1 5 7 Energy Cannon 5 | . . . . 3 7 6 7 . Ballistic Gun 5 | . 28 21 27 12 1 1 . 4 Ballistic Cannon 5 | . . . . 5 9 4 4 3 Naked Turns . | . . . . . . . . . Heaviest Build 175 | 10 12 49 53 92 109 152 159 175 Greatest Support 44 | 20 20 33 33 33 30 38 38 44 Greatest Overweight (x) 11 | . . 1 1 4 9 11 4 4 Average Overweight (x) 3 | . . . 1 2 3 3 3 2 Largest Inventory Capacity 28 | 6 6 12 12 20 20 28 28 28 Average Capacity 21 | 5 6 10 12 19 20 28 28 22 Most Carried 28 | 6 6 12 12 20 20 28 28 25 Average Carried 20 | 3 5 9 11 18 19 25 26 18 Final Capacity 28 | 6 6 12 12 20 20 28 28 4 Final Carried 28 | 6 6 12 12 19 20 28 25 4 Class Distribution -------------------- 50% | Hauler-Mutant 24% | Hauler-Skirmisher 10% | Mutant 4% | Hauler-Tank 3% | Hacker-Skirmisher Dominant Class ---------------- Mutant | -10/Materials Mutant | -9/Materials Skirmisher | -8/Materials Hauler-Skirmisher | -7/Factory Hauler-Mutant | -6/Factory Hauler-Mutant | -5/Factory Hauler-Skirmisher | -4/Factory Hauler-Tank | -3/Research Resources | -11 -10 -9 -8 -7 -6 -5 -4 -3 ----------- Run | Scr Mat Mat Mat Fac Fac Fac Fac Res Matter Collected 8712 | 260 . 620 112 530 3128 2933 420 709 Remotely . | . . . . . . . . . Salvage Created 9764 | . . 1081 174 529 3455 3423 266 836 Parts 444 | . . 69 12 34 142 150 6 31 Haulers Intercepted 5 | . . 1 . . 1 3 . . Recyclers Shooed 22 | . . 3 . 1 7 9 1 1 Parts Field Recycled . | . . . . . . . . . Retrieved Matter . | . . . . . . . . . Parts Self-Destructed . | . . . . . . . . . Prevented . | . . . . . . . . . Kills | -11 -10 -9 -8 -7 -6 -5 -4 -3 ------- Run | Scr Mat Mat Mat Fac Fac Fac Fac Res Combat Hostiles Destroyed 136 | . . 24 3 9 34 48 5 13 Melee 5 | . . . . . . . . 5 Guns 42 | . . 24 3 3 2 2 . 8 Cannons 43 | . . . . 2 18 18 5 . AOE 43 | . . . . 4 12 27 . . Classes Destroyed 14 | . . 5 1 4 2 1 1 . Worker 19 | . . . . 2 5 11 . 1 Builder 21 | . . . 1 3 10 6 . 1 Tunneler 2 | . . . . . 1 1 . . Hauler 5 | . . 1 . . 1 3 . . Recycler 29 | . . 2 . 2 13 10 1 1 Operator 1 | . . . . . . 1 . . Watcher 10 | . . . . 1 7 2 . . Swarmer 46 | . . 7 . 4 9 20 . 6 Grunt 34 | . . 12 2 1 8 7 . 4 Duelist 2 | . . . . . 2 . . . Sentry 21 | . . 5 1 1 6 6 1 1 Hunter 5 | . . . . 2 1 . . 2 Programmer 26 | . . . . 1 8 15 2 . Assembled 2 | . . . . . . . 2 . Best Kill Streak 9 | . . 9 3 5 6 8 2 9 Combat Bots Only 6 | . . 5 3 4 3 6 2 5 Max Kills in Single Turn 5 | . . 2 1 2 3 5 1 2 Gunslinging 1 | . . 1 . . . . . . Exploded 4 | . . . . 1 3 4 . . Melee 1 | . . . . . . . . 1 Uniques/NPCs Destroyed . | . . . . . . . . . Combat | -11 -10 -9 -8 -7 -6 -5 -4 -3 -------- Run | Scr Mat Mat Mat Fac Fac Fac Fac Res Damage Taken 13133 | . . 806 151 506 2544 2906 1184 5036 Core 2349 | . . 142 23 38 336 466 78 1266 Absorbed by Shields . | . . . . . . . . . Core Remaining (%) 82 | 100 100 64 95 94 60 53 93 . Volleys Fired 614 | . . 63 8 43 246 199 24 31 Largest 3 | . . 2 3 3 3 3 3 3 Hottest 254 | . . 46 69 134 207 228 254 139 Shots Fired 1156 | . . 123 24 78 458 340 46 87 Gun 305 | . . 120 24 25 34 45 . 57 Cannon 803 | . . . . 48 413 270 42 30 Launcher 48 | . . 3 . 5 11 25 4 . Special . | . . . . . . . . . Kinetic 779 | . . 120 24 55 304 171 18 87 Thermal 96 | . . . . . 24 56 16 . Explosive 48 | . . 3 . 5 11 25 4 . Electromagnetic 233 | . . . . 18 119 88 8 . Robot Hit Streak 33 | . . 20 10 33 25 33 19 21 Robot Miss Streak 6 | . . 3 3 2 3 2 1 6 Penetration Max 2 | . . . . . . . . 2 Secondary Targets 3 | . . 3 . . . . . . Max Gunslinging Chain 1 | . . 1 . . . . . . Shots Hit Robots 739 | . . 97 14 47 254 227 32 68 Core Hits 388 | . . 42 8 27 116 148 16 31 Critical Hits 18 | . . 1 1 . 5 6 . 5 Critical Kills 2 | . . . . . 2 . . . Critical Parts Destroyed 16 | . . 1 1 . 3 6 . 5 Melee Attacks 18 | . . . . . . . . 18 Impact . | . . . . . . . . . Slashing . | . . . . . . . . . Piercing 18 | . . . . . . . . 18 Sneak Attacks 1 | . . . . . . . . 1 Combat Hostiles . | . . . . . . . . . Follow-up Attacks . | . . . . . . . . . Damage Inflicted 24324 | . . 1367 213 1442 7922 9533 1250 2597 Guns 4539 | . . 1367 213 253 393 541 . 1772 Cannons 13480 | . . . . 593 6160 5258 937 532 Explosions 6012 | . . . . 596 1369 3734 313 . Melee 270 | . . . . . . . . 270 Ramming 23 | . . . . . . . . 23 Kinetic 10310 | . . 1367 213 482 3501 2155 288 2304 Thermal 3031 | . . . . 38 860 1720 413 . Explosive 5281 | . . . . 558 927 3483 313 . Electromagnetic 5409 | . . . . 364 2634 2175 236 . Impact . | . . . . . . . . . Slashing . | . . . . . . . . . Piercing 270 | . . . . . . . . 270 Highest Corruption 13 | . . . . . 2 7 4 13 Average Corruption 2 | . . . . . 1 2 3 7 Corruption Purged 17 | . . . . . 3 12 2 . Effects 81 | . . . . . 4 63 7 7 Message Errors 19 | . . . . . 1 16 1 1 Matter Fused 14 | . . . . . . 13 1 . Heat Flow Errors 11 | . . . . . . 7 3 1 Energy Discharges 11 | . . . . . . 10 1 . Parts Rejected 1 | . . . . . . . . 1 Data Loss (minor) 9 | . . . . . . 8 . 1 Misfires 1 | . . . . . . 1 . . Misdirections 1 | . . . . . . . . 1 Targeting Errors 13 | . . . . . 2 8 1 2 Weapon Failures 1 | . . . . . 1 . . . Overload Shots . | . . . . . . . . . Overflow Damage 866 | . . . . 55 384 326 43 58 Projectiles 599 | . . . . . 322 254 23 . Explosions 209 | . . . . 55 62 72 20 . Melee 58 | . . . . . . . . 58 Knockbacks 42 | . . . . 2 20 10 2 8 Impact . | . . . . . . . . . Kinetic 41 | . . . . 2 20 10 2 7 Secondary 1 | . . . . . . . . 1 Self-Inflicted Damage 461 | . . . . 24 173 153 100 11 Shots 13 | . . . . 1 5 4 3 . Rammed 2 | . . . . . . . . 2 Targets Rammed 2 | . . . . . . . . 2 Kicked . | . . . . . . . . . Crushed . | . . . . . . . . . Highest Temperature 512 | . . 6 8 125 278 512 286 71 Average Temperature 75 | . . 4 4 43 53 88 91 13 Received Heat Transfer 1932 | . . 339 90 105 498 510 27 363 Effects 5 | . . . . . . 5 . . Shutdowns 2 | . . . . . . 2 . . Energy Bleed 1 | . . . . . . 1 . . Matter Decay 1 | . . . . . . 1 . . Short Circuit 1 | . . . . . . 1 . . Siege Activations . | . . . . . . . . . Robots Corrupted 6 | . . . . . 2 4 . . Combat Hostiles 3 | . . . . . 2 1 . . Parts Fried 40 | . . . . 2 16 21 1 . Impact Corruptions . | . . . . . . . . . Robots Melted . | . . . . . . . . . Combat Hostiles . | . . . . . . . . . Parts Melted 5 | . . . . . 4 1 . . Heat Transferred 3950 | . . . . 50 1050 2250 600 . Parts Sabotaged . | . . . . . . . . . Parts Stolen . | . . . . . . . . . Parts Stripped . | . . . . . . . . . Power Chain Reactions 5 | . . . . 1 3 1 . . Missiles Intercepted . | . . . . . . . . . Alert | -11 -10 -9 -8 -7 -6 -5 -4 -3 ------- Run | Scr Mat Mat Mat Fac Fac Fac Fac Res Peak Influence 661 | . 18 487 256 158 253 661 256 272 Average Influence 141 | . 5 227 191 49 73 233 180 106 Maximum Alert Level 2 | . . 2 1 . 1 2 1 1 Low Security (%) 70 | 100 100 44 52 100 92 44 39 80 Level 1 23 | . . 48 47 . 7 36 60 19 Level 2 6 | . . 6 . . . 19 . . Level 3 . | . . . . . . . . . Level 4 . | . . . . . . . . . Level 5 . | . . . . . . . . . High Security . | . . . . . . . . . Max Security . | . . . . . . . . . Squads Dispatched 40 | . . 4 . 1 16 12 2 5 Investigation 3 | . . 1 . . . . 1 1 Extermination 17 | . . . . 1 9 6 1 . Reinforcement 17 | . . 3 . . 7 3 . 4 Assault . | . . . . . . . . . Garrison 3 | . . . . . . 3 . . Intercept . | . . . . . . . . . Construction Impeded 9 | . . . . . 5 2 . 2 Haulers Reinforced 4 | . . . . . 2 1 . 1 Stealth | -11 -10 -9 -8 -7 -6 -5 -4 -3 --------- Run | Scr Mat Mat Mat Fac Fac Fac Fac Res Distress Signals 11 | . . 2 . . 3 3 1 2 Communications Jammed . | . . . . . . . . . Distress Signals . | . . . . . . . . . Times Spotted 214 | . 2 37 7 13 52 45 15 43 Peak Tracking Total 19 | . 2 5 4 5 3 7 8 19 Tactical Retreats 22 | . . 1 . 1 4 7 1 8 Traps | -11 -10 -9 -8 -7 -6 -5 -4 -3 ------- Run | Scr Mat Mat Mat Fac Fac Fac Fac Res Traps Triggered 21 | . . 1 . . 6 7 6 1 Indirectly . | . . . . . . . . . Trap Hack Attempts . | . . . . . . . . . Triggered . | . . . . . . . . . Disarmed . | . . . . . . . . . Reprogrammed . | . . . . . . . . . Reused . | . . . . . . . . . Traps Extracted . | . . . . . . . . . Installed . | . . . . . . . . . Triggered . | . . . . . . . . . Machines | -11 -10 -9 -8 -7 -6 -5 -4 -3 ---------- Run | Scr Mat Mat Mat Fac Fac Fac Fac Res Machines Disabled 42 | . . 1 . 1 17 23 . . Max in Single Turn 4 | . . 1 . 1 4 4 . . Garrison Access 6 | . . . . 1 2 3 . . Machines Sabotaged . | . . . . . . . . . Garrisons Compromised . | . . . . . . . . . Overloaded Fab Kills . | . . . . . . . . . Fab Network Shutdowns 1 | . . . . . . 1 . . Hacking | -11 -10 -9 -8 -7 -6 -5 -4 -3 --------- Run | Scr Mat Mat Mat Fac Fac Fac Fac Res Machines Accessed 78 | . 4 6 3 9 29 23 2 2 Terminals 40 | . 3 5 2 7 13 9 . 1 Fabricators 6 | . . . . . 2 4 . . Repair Stations 10 | . . . . . 4 3 2 1 Recycling Units 8 | . 1 1 1 1 3 1 . . Scanalyzers 6 | . . . . . 4 2 . . Garrison Access 8 | . . . . 1 3 4 . . Total Hacks 196 | . 8 17 8 21 74 58 4 6 Successful 132 | . 5 7 4 9 53 48 2 4 Failed 64 | . 3 10 4 12 21 10 2 2 Catastrophic 10 | . . 3 . 2 4 . . 1 Database Lockouts . | . . . . . . . . . Manual 60 | . 5 9 3 7 21 12 . 3 Terminals 110 | . 7 14 7 19 35 24 . 4 Fabricators 16 | . . . . . 4 12 . . Repair Stations 27 | . . . . . 12 9 4 2 Recycling Units 11 | . 1 3 1 1 4 1 . . Scanalyzers 19 | . . . . . 13 6 . . Garrison Access 13 | . . . . 1 6 6 . . Terminal Hacks 48 | . 2 4 1 6 17 17 . 1 Record 1 | . . . . . . 1 . . Part Schematic 5 | . . . . . 4 1 . . Level Access Points 6 | . 1 1 1 1 1 1 . . Branch Access Points 1 | . . . . . . 1 . . Emergency Access Points 4 | . . . . 2 1 1 . . Terminal Index 5 | . 1 1 . . 2 1 . . Fabricator Index 1 | . . . . . 1 . . . Scanalyzer Index 2 | . . . . . 1 1 . . Unreport Threat 7 | . . . . 1 3 3 . . Locate Traps 8 | . . 1 . 2 2 2 . 1 Patrol Status 1 | . . . . . . 1 . . Hauler Manifests 2 | . . . . . 1 1 . . Zone Layout 5 | . . 1 . . 1 3 . . Fabricator Hacks 13 | . . . . . 3 10 . . Load Schematic 6 | . . . . . 2 4 . . Build 7 | . . . . . 1 6 . . Repair Station Hacks 23 | . . . . . 12 8 2 1 Scan Component 13 | . . . . . 6 4 2 1 Repair 10 | . . . . . 6 4 . . Recycling Unit Hacks 7 | . 1 1 1 . 3 1 . . Retrieve Components 7 | . 1 1 1 . 3 1 . . Scanalyzer 17 | . . . . . 12 5 . . Insert Component 9 | . . . . . 6 3 . . Analyze 8 | . . . . . 6 2 . . Garrison Access Hacks 6 | . . . . 1 2 3 . . Seal Access 6 | . . . . 1 2 3 . . Unauthorized Hacks 43 | . 6 5 5 5 10 8 . 4 Terminals 17 | . 2 2 2 2 4 3 . 2 Assimilate 2 | . . . . . 2 . . . Botnet 13 | . 2 2 2 2 2 2 . 1 Disrupt 2 | . . . . . . 1 . 1 Fabricators 1 | . . . . . . 1 . . Prioritize 1 | . . . . . . 1 . . Repair Stations . | . . . . . . . . . Recycling Units . | . . . . . . . . . Scanalyzers . | . . . . . . . . . Garrison Access . | . . . . . . . . . Data Cores Recovered . | . . . . . . . . . Used . | . . . . . . . . . Hacking Detections 66 | . 3 4 2 8 28 17 2 2 Full Trace Events . | . . . . . . . . . Feedback Events . | . . . . . . . . . Feedback Blocked . | . . . . . . . . . Robot Schematics Acquired . | . . . . . . . . . Robots Built . | . . . . . . . . . Matter . | . . . . . . . . . Time . | . . . . . . . . . Total Robot Build Rating . | . . . . . . . . . Part Schematics Acquired 11 | . . . . . 8 3 . . Parts Built 8 | . . . . . 1 7 . . Matter 920 | . . . . . 168 752 . . Time 230 | . . . . . 42 188 . . Total Part Build Rating 24 | . . . . . 4 20 . . Parts Repaired 10 | . . . . . 6 4 . . Time 312 | . . . . . 181 131 . . Parts Recycled . | . . . . . . . . . Recycled Matter . | . . . . . . . . . Retrieved Matter . | . . . . . . . . . Retrieved Components 36 | . 1 9 3 . 14 9 . . Parts Scanalyzed 8 | . . . . . 5 3 . . Part Schematics Acquired 7 | . . . . . 5 2 . . Parts Damaged 1 | . . . . . . 1 . . Bothacking | -11 -10 -9 -8 -7 -6 -5 -4 -3 ------------ Run | Scr Mat Mat Mat Fac Fac Fac Fac Res Used RIF Installer . | . . . . . . . . . Robots Hacked . | . . . . . . . . . Non-combat . | . . . . . . . . . Combat . | . . . . . . . . . Robot Hacks Applied . | . . . . . . . . . Relay Couplers Released 2 | . . . . . 2 . . . Machine Destruction 2 | . . . . . 2 . . . Robots Rewired . | . . . . . . . . . Allies Hacked . | . . . . . . . . . Hacks Repelled . | . . . . . . . . . Allies | -11 -10 -9 -8 -7 -6 -5 -4 -3 -------- Run | Scr Mat Mat Mat Fac Fac Fac Fac Res Total Allies 1 | . . . . . 1 . . . Largest Group 1 | . . . . . 1 . . . Highest-Rated Group 10 | . . . . . 10 . . . Highest-Rated Ally 10 | . . . . . 10 . . . Total Orders 1 | . . . . . 1 . . . STAY 1 | . . . . . 1 . . . Ally Attacks . | . . . . . . . . . Total Damage . | . . . . . . . . . Kills . | . . . . . . . . . Allies Corrupted . | . . . . . . . . . Allies Melted . | . . . . . . . . . Intel | -11 -10 -9 -8 -7 -6 -5 -4 -3 ------- Run | Scr Mat Mat Mat Fac Fac Fac Fac Res Robot Analysis Total . | . . . . . . . . . Derelict Logs Recovered . | . . . . . . . . . Drone Launches . | . . . . . . . . . Drone Recoveries . | . . . . . . . . . Exploration | -11 -10 -9 -8 -7 -6 -5 -4 -3 ------------- Run | Scr Mat Mat Mat Fac Fac Fac Fac Res Turns Passed 14292 | 54 305 1043 311 1425 5236 4674 664 580 Spaces Moved 9253 | 34 212 538 178 929 3504 3102 387 369 Core 63 | 7 . . . . . . . 56 Treads . | . . . . . . . . . Legs 1320 | 27 212 538 178 365 . . . . Wheels 7849 | . . . . 564 3504 3102 387 292 Hover 4 | . . . . . . . . 4 Flight 17 | . . . . . . . . 17 Fastest Speed 40 | 50 120 120 150 100 100 120 120 40 Average Speed 120 | 105 120 140 150 134 112 122 126 103 Slowest Speed 200 | 120 120 150 150 180 170 200 130 130 Overloaded Moves . | . . . . . . . . . Propulsion Burnouts . | . . . . . . . . . Robots Hopped . | . . . . . . . . . Cave-ins Triggered . | . . . . . . . . . Exploration Rate (%) 34 | 3 38 54 22 21 83 61 13 18 Regions Visited 8 Branch Regions . Pre-discovered Areas . | . . . . . . . . . Known Exits Taken 7 | . 1 1 1 1 1 1 1 . Unknown Exits Taken 1 | 1 . . . . . . . . Scrap Searched . | . . . . . . . . . Spaces Dug 169 | . . 21 . 7 68 59 2 12 Terrain Destroyed 877 | . . 21 . 21 202 533 62 38 Melee 8 | . . . . . . . . 8 Projectile 153 | . . . . 10 66 40 7 30 AOE 716 | . . 21 . 11 136 493 55 . Actions | -11 -10 -9 -8 -7 -6 -5 -4 -3 --------- Run | Scr Mat Mat Mat Fac Fac Fac Fac Res Total 11299 | 49 265 709 204 1034 4368 3672 517 481 Wait 771 | 4 38 53 10 18 427 159 57 5 Move 9245 | 33 211 537 177 928 3503 3101 386 369 Hop . | . . . . . . . . . Pick Up 110 | 6 6 14 3 12 18 38 11 2 Fast Attach 62 | 6 2 4 . 5 14 12 10 9 Attach 72 | . . 2 2 2 9 31 11 15 Detach 39 | . 1 2 . 2 6 16 3 9 Swap 246 | . . 15 3 16 118 82 8 4 Drop 112 | . 7 19 1 8 19 34 7 17 Fire 614 | . . 63 8 43 246 199 24 31 Melee 18 | . . . . . . . . 18 Ram 2 | . . . . . . . . 2 Kick . | . . . . . . . . . Crush . | . . . . . . . . . Escape Stasis 8 | . . . . . 8 . . . Rewire . | . . . . . . . . . Trap . | . . . . . . . . . Miscellaneous . | . . . . . . . . . Route ------- -11/Scrapyard -10/Materials (discovered 4 exits: *Mat x3 / [*Min]) -9/Materials (discovered 5 exits: *Mat x3 / [*Min x2]) -8/Materials (discovered 3 exits: *Fac x3) -7/Factory (discovered 5 exits: *Fac x4 / *Sto) -6/Factory (discovered 6 exits: *Fac x4 / *Low x2) -5/Factory (discovered 6 exits: *Fac x4 / *Upp x2) -4/Factory (discovered 2 exits: *Res / *Ext) -3/Research History --------- Turn | Location | Event 6 | -11/Scrapyard | Discovered new exit (range 15) 55 | -11/Scrapyard | Entered Materials 252 | -10/Materials | Discovered new exit (range 7) 275 | -10/Materials | Identified exit to Materials 307 | -10/Materials | Build established: Mutant 360 | -10/Materials | Entered another Materials area 360 | -9/Materials | Evolved 2 slots: Propulsion x1, Utility x1 470 | -9/Materials | Discovered new exit (range 9) 721 | -9/Materials | Discovered new exit (range 11) 1239 | -9/Materials | Identified exit to Materials 1403 | -9/Materials | Entered another Materials area 1403 | -8/Materials | Evolved 2 slots: Utility x1, Weapon x1 1420 | -8/Materials | Identified exit to Factory 1714 | -8/Materials | Entered Factory 1714 | -7/Factory | Evolved 2 slots: Utility x2 1995 | -7/Factory | Discovered new exit (range 9) 2095 | -7/Factory | Identified exit to Storage 2142 | -7/Factory | Build established: Hauler-Mutant 2675 | -7/Factory | Discovered new exit (range 15) 2684 | -7/Factory | Build established: Hauler-Skirmisher 2712 | -7/Factory | Identified exit to Factory 3139 | -7/Factory | Entered another Factory area 3139 | -6/Factory | Evolved 2 slots: Utility x2 3344 | -6/Factory | Repaired Imp. Sensor Array? 3498 | -6/Factory | Build established: Hauler-Mutant 3657 | -6/Factory | Discovered new exit (range 16) 3684 | -6/Factory | Identified exit to Factory 3697 | -6/Factory | Repaired Wheel? 3742 | -6/Factory | Repaired Hvy. Assault Rifle 4318 | -6/Factory | Fabricated Imp. EM Pulse Cannon? 5302 | -6/Factory | Found Prototype Processor 5302 | -6/Factory | Identified Exp. Signal Interpreter 5330 | -6/Factory | Found Exp. Signal Interpreter 5752 | -6/Factory | Discovered new exit (range 14) 7557 | -6/Factory | Discovered new exit (range 5) 7560 | -6/Factory | Identified exit to Lower Caves 7783 | -6/Factory | Repaired Imp. Cooling System 7885 | -6/Factory | Lost 4 parts (1p3n) 8150 | -6/Factory | Repaired Imp. EM Pulse Cannon 8181 | -6/Factory | Repaired Hvy. Plasma Cannon 8367 | -6/Factory | Build established: Hacker-Skirmisher 8375 | -6/Factory | Entered another Factory area 8375 | -5/Factory | Evolved 2 slots: Power x1, Utility x1 8672 | -5/Factory | Build established: Hauler-Mutant 8706 | -5/Factory | Fabricated Imp. EM Pulse Cannon (x1) 8745 | -5/Factory | Identified exit to Upper Caves 8920 | -5/Factory | Identified exit to Factory 9016 | -5/Factory | Build established: Hauler-Skirmisher 9066 | -5/Factory | Fabricated Arm. Wheel (x2) 9093 | -5/Factory | Fabricated Lrn. Sensor Array (x1) 9102 | -5/Factory | Fabricated Arm. Wheel? 9163 | -5/Factory | Repaired Lgt. Fission Core 9220 | -5/Factory | Found Launcher Loader 9311 | -5/Factory | Fabricated Lrn. Sensor Array? 9357 | -5/Factory | Repaired Imp. Thermal Shield? 9364 | -5/Factory | Local fabrication network quarantined 9540 | -5/Factory | Lost 4 parts (2n1u1w) 10068 | -5/Factory | Build established: Hauler-Mutant 10417 | -5/Factory | Repaired Imp. EM Pulse Cannon 11790 | -5/Factory | Repaired Neutrino Core? 11899 | -5/Factory | Garrison activated, responded to threat 13049 | -5/Factory | Entered another Factory area 13049 | -4/Factory | Evolved 2 slots: Utility x2 13351 | -4/Factory | Assembled infested ambush trap array 13485 | -4/Factory | Discovered new exit (range 5) 13489 | -4/Factory | Identified exit to Extension 13633 | -4/Factory | Discovered new exit (range 9) 13709 | -4/Factory | Identified exit to Research 13713 | -4/Factory | Entered Research 13713 | -3/Research | Evolved 2 slots: Utility x2 13736 | -3/Research | Lost 3 parts (1p1u1w) 14185 | -3/Research | System corruption reached 10% 14195 | -3/Research | Lost 11 parts (2p1n7u1w) 14220 | -3/Research | Core integrity fell below 50% 14257 | -3/Research | Lost 4 parts (2n2u) 14279 | -3/Research | Spotted B-86 Titan 14284 | -3/Research | Core integrity fell below 20% 14293 | -3/Research | Self-destructed Last Messages --------------- 14260_ S-43 Plague destroyed. 14267_ Slug penetrates Wall. 14268_ Acquired 35 matter. 14269_ W-44 Eye distress signal alerts nearby ally. 14272_ Acquired Adv. Launcher Guidance Computer. 14272_ P-80 Master resets S-43 Plague, system corruption cleaned. 14273_ ALERT: Hostiles spotted, dispatching reinforcements to Terminal R001. 14275_ S-43 Plague destroyed. 14283_ Penetrated by Slug. 14284_ Acquired Imp. Linear Gravjet. 14285_ B-86 Titan activates siege mode. 14286_ Dropped Hcp. Storage Unit. 14287_ Acquired Imp. Linear Gravjet. 14287_ Penetrated by Slug. 14287_ Imp. Linear Gravjet destroyed. 14287_ Slug penetrates Wall. 14288_ Acquired Hcp. Storage Unit. 14290_ Imp. Linear Gravjet destroyed. 14290_ Acquired Imp. Linear Gravjet. 14293_ Adv. Terrain Scan Processor destroyed. Map ----- +----------------------------------------------------+ | ???????????# ?????????# / | | ???????????# #?????????# = # | | ???????????# #?????????# == # | | ???????????# #?????????########### | | ???????????# ###########=##??? | | ?????????????? + =%==# | | ?????????????????# # =*%# | | ?????????????????# # %=/ | | ?????????????????# " =*# ####### | | ?????????????????# # | # #?????? | | ?????????????????# ############## #?????? | | ?????????????????# p #????????# #?????? | | ?????????????????+ #???????## Y #?????? | | ?????????????????# #??##?? # #?????? | | ?????????????????# ###;### #g ^ +?????? | | ?????????????????####+### BB hh #?????? | | ????????????????????????# BB h #?????? | | ????????????????????????# pg #?????? | | ????????????????????????# g"" #?????? | | ????????????????????????# o"" #?????? | | ????????????????????????#! T" #?????? | | ????????????????????????# "" #?????? | | ????????????????????????# "" #?????? | | ????????????????????????# = #?????? | | ?????????????????######## = #?????? | | ?????????????????# @ = #?????? | | ?????????????????# #?????? | | ?????????????????# #?????? | | ?????????????????+ #?????? | | ?????????????????# ################# #?????? | | ?????????????????# ????????????????? #?????? | | ?????????????????# ???????????????????? ####### | | ?????????????????# ?????????????????????? # | | ?????????????????# ???????????????????????# | | ?????????????????# ????????????????????????# | | ?????????????????+?????????????????????????#"" | | ???????????????????????????????????????????# | | ???????????????????????????????????????????# | | ???????????????????????????????????????????# | | ????????????????????????????????????? / ! | | ?????????????????????????????????? # | | ????????????????????????????????? ???####### | | ????????????????????????????????? ?????????????? | | ?????????????????????????????????????????????????? | | ?????????????????????????????????????????????????? | | ?????????????????????????????????????????????????? | | ?????????????????????????????????????????????????? | | ?????????????????????????????????????????????????? | | ?????????????????????????????????????????????????? | | ?????????????????????????????????????????????????? | +----------------------------------------------------+ Best States ------------- Heat Dissipation 77 Energy Generation 39 Energy Capacity 505 Matter Stores 300 Matter Capacity 300 Sight Range 22 Robot Scan Range 20 Terrain Scan Range 24 Terrain Scan Density 210 Armor Coverage 900 Resistance: KI 20 Resistance: TH 50 Resistance: EX 20 Resistance: EM 20 Resistance: I 20 Resistance: S 20 Resistance: P 20 Propulsion Shielding 66 Weapon Shielding 66 Evasion (%) 62 Launcher Accuracy 40 Matter Filtering 30 Offensive Hacking 26 Item Schematics ----------------- Imp. EM Pulse Cannon | -6/Factory | Scanalyzed Arm. Wheel | -6/Factory | Hacked Imp. Propulsion Shielding | -6/Factory | Scanalyzed Adv. Hacking Suite | -6/Factory | Hacked Imp. Cooling System | -6/Factory | Scanalyzed Adv. Assault Cannon | -6/Factory | Scanalyzed Rnf. Deuterium Engine | -6/Factory | Scanalyzed Lrn. Sensor Array | -6/Factory | Hacked Smartbomb Launcher | -5/Factory | Scanalyzed Adv. Powered Armor | -5/Factory | Hacked Arm. Huge Wheel | -5/Factory | Scanalyzed Robot Schematics ------------------ None Fabricated ------------ Imp. EM Pulse Cannon | x1 | -6/Factory Imp. EM Pulse Cannon | x1 | -5/Factory Arm. Wheel | x2 | -5/Factory Lrn. Sensor Array | x1 | -5/Factory Arm. Wheel | x2 | -5/Factory Lrn. Sensor Array | x1 | -5/Factory Alien Tech Used ----------------- None Achievements -------------- None Challenges ------------ None Game ------ Seed ResetRefineryGravjet Manual? 0 Play Time 04:59:35 Cumulative 255.2 hours Start 2019.12.13 @ 17:49:14 End 2019.12.20 @ 22:36:31 Sessions 1 Manual Loads 0 Difficulty Adventurer Special Mode None Game No. 105 Rogue 95 Adventurer 10 Explorer 0 Win Type - Total 0 Types 0/0/0/0/0/0/0 Lore% 36 Gallery% 54 Achievement% 37 Wizard Run 0 Options --------- ASCII 0 Keyboard 1 Movement Vi Keybinds 0 Fullscreen 1 Font 12/Tallcaps Map View 83x54 Tactical HUD 1 Map Filters NONE Filters NONE Steam 0 RUN: c49a0fc7-e3c8-4cc6-be86-3817c337722d